[Event "Early-Titled-Tuesday-Blitz-May-28-2024"]
[Site "Chess.com"]
[Date "2024.05.28"]
[Round "7"]
[White "pirulillo"]
[Black "Alphafischer2019"]
[Result "1-0"]
[WhiteElo "2404"]
[BlackElo "2679"]
[TimeControl "180+1"]
[EndTime "9:19:52 PDT"]
[Termination "pirulillo won by checkmate"]

1. e4 {[%clk 0:02:58.9]} 1... c5 {[%clk 0:02:59.8]} 2. Nf3 {[%clk 0:02:57.3]}
2... Nc6 {[%clk 0:02:59.6]} 3. Bb5 {[%clk 0:02:54.7]} 3... Nf6 {[%clk 0:02:59]}
4. Nc3 {[%clk 0:02:48.9]} 4... Qc7 {[%clk 0:02:56.9]} 5. Bxc6 {[%clk 0:02:43.2]}
5... dxc6 {[%clk 0:02:55.4]} 6. d3 {[%clk 0:02:41.8]} 6... Bg4 {[%clk
0:02:55.4]} 7. h3 {[%clk 0:02:40.6]} 7... Bh5 {[%clk 0:02:55.5]} 8. Be3 {[%clk
0:02:39.9]} 8... e5 {[%clk 0:02:53.9]} 9. g4 {[%clk 0:02:37.2]} 9... Bg6 {[%clk
0:02:53.5]} 10. Qd2 {[%clk 0:02:38]} 10... Nd7 {[%clk 0:02:51.9]} 11. Nh4 {[%clk
0:02:34.5]} 11... f6 {[%clk 0:02:44.6]} 12. O-O-O {[%clk 0:02:32.2]} 12... O-O-O
{[%clk 0:02:43.6]} 13. Ne2 {[%clk 0:02:21.4]} 13... Nb8 {[%clk 0:02:31.3]} 14.
Nxg6 {[%clk 0:02:16.9]} 14... hxg6 {[%clk 0:02:29.5]} 15. Qc3 {[%clk 0:02:16.7]}
15... b6 {[%clk 0:02:14]} 16. h4 {[%clk 0:02:11.6]} 16... Bd6 {[%clk 0:02:11.5]}
17. Ng3 {[%clk 0:02:08.4]} 17... Nd7 {[%clk 0:01:40.7]} 18. Qc4 {[%clk
0:02:01.6]} 18... Nf8 {[%clk 0:01:37.5]} 19. h5 {[%clk 0:01:58.5]} 19... Kb7
{[%clk 0:01:34.3]} 20. a4 {[%clk 0:01:53]} 20... a5 {[%clk 0:01:32.1]} 21. hxg6
{[%clk 0:01:39]} 21... Nxg6 {[%clk 0:01:29.9]} 22. Nf5 {[%clk 0:01:39.6]} 22...
Nf4 {[%clk 0:01:29.1]} 23. Bxf4 {[%clk 0:01:35.9]} 23... exf4 {[%clk 0:01:28.5]}
24. Rxh8 {[%clk 0:01:19.4]} 24... Rxh8 {[%clk 0:01:25]} 25. Nxd6+ {[%clk
0:01:18.8]} 25... Qxd6 {[%clk 0:01:23.8]} 26. Qf7+ {[%clk 0:01:18.8]} 26... Qc7
{[%clk 0:01:24.4]} 27. Qc4 {[%clk 0:01:00.3]} 27... f3 {[%clk 0:01:18.7]} 28.
Rg1 {[%clk 0:00:55.7]} 28... Rh2 {[%clk 0:01:15.2]} 29. Rf1 {[%clk 0:00:55]}
29... Rg2 {[%clk 0:01:11.9]} 30. Qe6 {[%clk 0:00:53.1]} 30... Qf4+ {[%clk
0:01:01.4]} 31. Kb1 {[%clk 0:00:52.3]} 31... Qxg4 {[%clk 0:01:01.6]} 32. Qf7+
{[%clk 0:00:50.4]} 32... Kc8 {[%clk 0:00:58.3]} 33. Qg8+ {[%clk 0:00:43.6]}
33... Kc7 {[%clk 0:00:57]} 34. Rh1 {[%clk 0:00:36.3]} 34... Rxf2 {[%clk
0:00:48.8]} 35. Rh8 {[%clk 0:00:35.8]} 35... Rf1+ {[%clk 0:00:12.9]} 36. Ka2
{[%clk 0:00:35.6]} 36... Kd6 {[%clk 0:00:13.6]} 37. Qb8+ {[%clk 0:00:29.6]}
37... Ke7 {[%clk 0:00:12.7]} 38. Qd8+ {[%clk 0:00:24.4]} 38... Ke6 {[%clk
0:00:12.5]} 39. Qc8+ {[%clk 0:00:19]} 39... Ke5 {[%clk 0:00:12.1]} 40. Qxg4
{[%clk 0:00:18.7]} 40... f2 {[%clk 0:00:12.8]} 41. Qf5+ {[%clk 0:00:18.2]} 41...
Kd4 {[%clk 0:00:12.9]} 42. Rh2 {[%clk 0:00:18.1]} 42... Ke3 {[%clk 0:00:13.4]}
43. Qh3+ {[%clk 0:00:17.3]} 43... Ke2 {[%clk 0:00:13.7]} 44. Qg4+ {[%clk
0:00:17.1]} 44... Ke3 {[%clk 0:00:13.4]} 45. Qxg7 {[%clk 0:00:16.1]} 45... c4
{[%clk 0:00:10.9]} 46. Qh6+ {[%clk 0:00:14.9]} 46... Ke2 {[%clk 0:00:11]} 47.
Qh5+ {[%clk 0:00:14.4]} 47... Ke3 {[%clk 0:00:11]} 48. Rxf2 {[%clk 0:00:13.1]}
48... Rxf2 {[%clk 0:00:10.6]} 49. Qh6+ {[%clk 0:00:13.1]} 49... Kd4 {[%clk
0:00:10.2]} 50. Qh3 {[%clk 0:00:11.3]} 50... Rxc2 {[%clk 0:00:09.5]} 51. dxc4
{[%clk 0:00:10.3]} 51... Rxc4 {[%clk 0:00:09.9]} 52. b3 {[%clk 0:00:09.7]} 52...
Rc2+ {[%clk 0:00:07.1]} 53. Ka3 {[%clk 0:00:09.8]} 53... Rc3 {[%clk 0:00:04.1]}
54. Qf5 {[%clk 0:00:09.4]} 54... Rc2 {[%clk 0:00:02.1]} 55. e5 {[%clk
0:00:08.4]} 55... Rc5 {[%clk 0:00:01.1]} 56. Qxf6 {[%clk 0:00:07.8]} 56... Rxe5
{[%clk 0:00:01]} 57. Qxc6 {[%clk 0:00:08]} 57... Re1 {[%clk 0:00:01.1]} 58. Qc4+
{[%clk 0:00:07.5]} 58... Ke5 {[%clk 0:00:01]} 59. Qc3+ {[%clk 0:00:07.5]} 59...
Kd6 {[%clk 0:00:01.7]} 60. Qxe1 {[%clk 0:00:07.4]} 60... b5 {[%clk 0:00:01.7]}
61. axb5 {[%clk 0:00:07.2]} 61... Kc5 {[%clk 0:00:01.8]} 62. Qxa5 {[%clk
0:00:07.1]} 62... Kd6 {[%clk 0:00:02.6]} 63. b6 {[%clk 0:00:07.2]} 63... Kc6
{[%clk 0:00:03.5]} 64. Qa6 {[%clk 0:00:07]} 64... Kd6 {[%clk 0:00:03.2]} 65. b7+
{[%clk 0:00:07.2]} 65... Kc5 {[%clk 0:00:04]} 66. Qa7+ {[%clk 0:00:07.1]} 66...
Kc6 {[%clk 0:00:03.9]} 67. b8=Q {[%clk 0:00:05.3]} 67... Kd5 {[%clk 0:00:04.2]}
68. Qb5+ {[%clk 0:00:05.3]} 68... Ke4 {[%clk 0:00:04.9]} 69. Qac5 {[%clk
0:00:05]} 69... Kf3 {[%clk 0:00:04.3]} 70. Qe5 {[%clk 0:00:04.7]} 70... Kf2
{[%clk 0:00:05.2]} 71. Qbe2+ {[%clk 0:00:04.7]} 71... Kg1 {[%clk 0:00:06.1]} 72.
Qg3+ {[%clk 0:00:04.7]} 72... Kh1 {[%clk 0:00:06.8]} 73. Qeh2# {[%clk 0:00:05]}
1-0

[Event "Early-Titled-Tuesday-Blitz-May-28-2024"]
[Site "Chess.com"]
[Date "2024.05.28"]
[Round "7"]
[White "PeshkaCh"]
[Black "Malev212"]
[Result "0-1"]
[WhiteElo "2854"]
[BlackElo "2651"]
[TimeControl "180+1"]
[EndTime "9:20:00 PDT"]
[Termination "Malev212 won by checkmate"]

1. Nf3 {[%clk 0:03:00.9]} 1... c5 {[%clk 0:02:54.5]} 2. c4 {[%clk 0:03:00.9]}
2... Nc6 {[%clk 0:02:52.3]} 3. Nc3 {[%clk 0:03:01.4]} 3... g6 {[%clk 0:02:51.6]}
4. g3 {[%clk 0:03:01.9]} 4... Bg7 {[%clk 0:02:51.5]} 5. Bg2 {[%clk 0:03:02.4]}
5... d6 {[%clk 0:02:51.7]} 6. O-O {[%clk 0:03:02.8]} 6... Bg4 {[%clk 0:02:51.2]}
7. h3 {[%clk 0:03:02.4]} 7... Bxf3 {[%clk 0:02:50.8]} 8. Bxf3 {[%clk 0:03:03.3]}
8... e6 {[%clk 0:02:50.9]} 9. b3 {[%clk 0:03:01.6]} 9... Nge7 {[%clk 0:02:48.5]}
10. Bb2 {[%clk 0:03:02.2]} 10... O-O {[%clk 0:02:47.9]} 11. e3 {[%clk
0:03:02.7]} 11... a6 {[%clk 0:02:47.4]} 12. Bg2 {[%clk 0:02:57.3]} 12... b5
{[%clk 0:02:45.1]} 13. cxb5 {[%clk 0:02:55.4]} 13... axb5 {[%clk 0:02:45.1]} 14.
Qc2 {[%clk 0:02:56.1]} 14... Rb8 {[%clk 0:02:31.6]} 15. Ne4 {[%clk 0:02:47.6]}
15... e5 {[%clk 0:02:04.1]} 16. Rac1 {[%clk 0:02:30.8]} 16... f5 {[%clk
0:02:01.3]} 17. Nc3 {[%clk 0:02:06.1]} 17... Nb4 {[%clk 0:01:59.2]} 18. Qb1
{[%clk 0:02:04.5]} 18... e4 {[%clk 0:01:55.8]} 19. a4 {[%clk 0:01:41.7]} 19...
bxa4 {[%clk 0:01:52.2]} 20. bxa4 {[%clk 0:01:41.9]} 20... Nd3 {[%clk 0:01:49.5]}
21. Qa2+ {[%clk 0:01:38.2]} 21... Kh8 {[%clk 0:01:48.5]} 22. Rb1 {[%clk
0:01:38.4]} 22... d5 {[%clk 0:01:32.8]} 23. Ba1 {[%clk 0:01:33.6]} 23... Nb4
{[%clk 0:01:23.3]} 24. Qa3 {[%clk 0:01:24.6]} 24... Nec6 {[%clk 0:01:23]} 25.
Nb5 {[%clk 0:01:23.6]} 25... Qe7 {[%clk 0:01:14.8]} 26. Bxg7+ {[%clk 0:01:21.8]}
26... Qxg7 {[%clk 0:01:14.6]} 27. Rbc1 {[%clk 0:00:25.9]} 27... c4 {[%clk
0:01:01.2]} 28. Nc3 {[%clk 0:00:20.7]} 28... g5 {[%clk 0:00:54.9]} 29. Kh1
{[%clk 0:00:14.1]} 29... f4 {[%clk 0:00:52.1]} 30. exf4 {[%clk 0:00:10.2]} 30...
gxf4 {[%clk 0:00:51.7]} 31. gxf4 {[%clk 0:00:11.1]} 31... Rxf4 {[%clk 0:00:45]}
32. Ne2 {[%clk 0:00:08.8]} 32... Rh4 {[%clk 0:00:40.9]} 33. Qg3 {[%clk
0:00:08.8]} 33... Qh6 {[%clk 0:00:35]} 34. Nd4 {[%clk 0:00:05.2]} 34... Rg8
{[%clk 0:00:33.4]} 35. Nf5 {[%clk 0:00:05.8]} 35... Rxg3 {[%clk 0:00:31.9]} 36.
Nxh6 {[%clk 0:00:05.5]} 36... Rgxh3+ {[%clk 0:00:31.3]} 37. Bxh3 {[%clk
0:00:05.9]} 37... Rxh3+ {[%clk 0:00:31.6]} 38. Kg2 {[%clk 0:00:06.8]} 38... Rxh6
{[%clk 0:00:31.9]} 39. Rb1 {[%clk 0:00:07.5]} 39... Rg6+ {[%clk 0:00:30.3]} 40.
Kh2 {[%clk 0:00:07.3]} 40... Nd3 {[%clk 0:00:29.2]} 41. Rb7 {[%clk 0:00:07.3]}
41... d4 {[%clk 0:00:25.4]} 42. Rc7 {[%clk 0:00:06.1]} 42... c3 {[%clk
0:00:24.6]} 43. dxc3 {[%clk 0:00:05.7]} 43... dxc3 {[%clk 0:00:24.5]} 44. Rd7
{[%clk 0:00:02.2]} 44... c2 {[%clk 0:00:23.9]} 45. a5 {[%clk 0:00:02.7]} 45...
Nxa5 {[%clk 0:00:21.5]} 46. Re7 {[%clk 0:00:02.7]} 46... c1=Q {[%clk 0:00:20.6]}
47. Rxc1 {[%clk 0:00:03.3]} 47... Nxc1 {[%clk 0:00:20.6]} 48. Rxe4 {[%clk
0:00:04.2]} 48... Nd3 {[%clk 0:00:20.4]} 49. f4 {[%clk 0:00:03.9]} 49... Nc6
{[%clk 0:00:19.7]} 50. f5 {[%clk 0:00:03.9]} 50... Rf6 {[%clk 0:00:19.7]} 51.
Re8+ {[%clk 0:00:03]} 51... Kg7 {[%clk 0:00:18.9]} 52. Re3 {[%clk 0:00:03.8]}
52... Nde5 {[%clk 0:00:18.1]} 53. Rg3+ {[%clk 0:00:03.8]} 53... Kf7 {[%clk
0:00:17.8]} 54. Rg5 {[%clk 0:00:04.5]} 54... h6 {[%clk 0:00:17.2]} 55. Rh5
{[%clk 0:00:03.5]} 55... Ne7 {[%clk 0:00:17]} 56. Rh3 {[%clk 0:00:03.6]} 56...
Nxf5 {[%clk 0:00:17]} 57. Ra3 {[%clk 0:00:04.3]} 57... Kg6 {[%clk 0:00:16.2]}
58. Kh3 {[%clk 0:00:04]} 58... Nf7 {[%clk 0:00:14.4]} 59. Kg4 {[%clk 0:00:03.6]}
59... h5+ {[%clk 0:00:13.8]} 60. Kf4 {[%clk 0:00:03.4]} 60... N5d6+ {[%clk
0:00:13.3]} 61. Kg3 {[%clk 0:00:03.7]} 61... Ng5 {[%clk 0:00:12.6]} 62. Ra4
{[%clk 0:00:02.5]} 62... Rf3+ {[%clk 0:00:12.1]} 63. Kg2 {[%clk 0:00:01.5]}
63... Rd3 {[%clk 0:00:12.1]} 64. Ra5 {[%clk 0:00:01.6]} 64... Nge4 {[%clk
0:00:11.3]} 65. Re5 {[%clk 0:00:01.4]} 65... h4 {[%clk 0:00:10.8]} 66. Kh2
{[%clk 0:00:01.4]} 66... Ng5 {[%clk 0:00:07.7]} 67. Kg2 {[%clk 0:00:01.2]} 67...
Kh5 {[%clk 0:00:07.6]} 68. Re6 {[%clk 0:00:01]} 68... Nde4 {[%clk 0:00:07.4]}
69. Re5 {[%clk 0:00:01.2]} 69... Kg4 {[%clk 0:00:07.3]} 70. Kf1 {[%clk
0:00:01.9]} 70... Rd2 {[%clk 0:00:07.2]} 71. Ke1 {[%clk 0:00:02.3]} 71... Ra2
{[%clk 0:00:07.2]} 72. Rd5 {[%clk 0:00:02.4]} 72... h3 {[%clk 0:00:07.1]} 73.
Kd1 {[%clk 0:00:02.2]} 73... h2 {[%clk 0:00:06.9]} 74. Kc1 {[%clk 0:00:02.6]}
74... h1=Q+ {[%clk 0:00:06.6]} 75. Rd1 {[%clk 0:00:03.5]} 75... Ra1+ {[%clk
0:00:05]} 76. Kb2 {[%clk 0:00:04]} 76... Rxd1 {[%clk 0:00:04.1]} 77. Ka2 {[%clk
0:00:04.3]} 77... Qg2+ {[%clk 0:00:04.4]} 78. Kb3 {[%clk 0:00:04.9]} 78... Qd2
{[%clk 0:00:04.4]} 79. Kc4 {[%clk 0:00:05.8]} 79... Rc1+ {[%clk 0:00:04.5]} 80.
Kb5 {[%clk 0:00:06.7]} 80... Qb2+ {[%clk 0:00:04.4]} 81. Ka6 {[%clk 0:00:07.6]}
81... Ra1# {[%clk 0:00:04.2]} 0-1

[Event "Early-Titled-Tuesday-Blitz-May-28-2024"]
[Site "Chess.com"]
[Date "2024.05.28"]
[Round "7"]
[White "Bob_2004"]
[Black "CarlosjPineror"]
[Result "0-1"]
[WhiteElo "2531"]
[BlackElo "2753"]
[TimeControl "180+1"]
[EndTime "9:20:04 PDT"]
[Termination "CarlosjPineror won by checkmate"]

1. d4 {[%clk 0:03:00.9]} 1... Nf6 {[%clk 0:02:59.7]} 2. c4 {[%clk 0:03:01.3]}
2... d6 {[%clk 0:03:00.1]} 3. Nc3 {[%clk 0:03:01.8]} 3... e5 {[%clk 0:02:59.9]}
4. Nf3 {[%clk 0:03:02.2]} 4... e4 {[%clk 0:02:59.9]} 5. Nd2 {[%clk 0:03:02.1]}
5... Bf5 {[%clk 0:03:00.4]} 6. Qc2 {[%clk 0:02:58.3]} 6... Qe7 {[%clk
0:02:59.4]} 7. b3 {[%clk 0:02:57.1]} 7... c6 {[%clk 0:02:55.7]} 8. Bb2 {[%clk
0:02:53]} 8... g6 {[%clk 0:02:54.9]} 9. e3 {[%clk 0:02:52.9]} 9... Bg7 {[%clk
0:02:52.2]} 10. O-O-O {[%clk 0:02:51.7]} 10... Nbd7 {[%clk 0:02:49.5]} 11. h3
{[%clk 0:02:50.6]} 11... h5 {[%clk 0:02:49.9]} 12. Be2 {[%clk 0:02:50.3]} 12...
h4 {[%clk 0:02:50.2]} 13. Kb1 {[%clk 0:02:43.2]} 13... O-O {[%clk 0:02:49.7]}
14. g4 {[%clk 0:02:42.4]} 14... hxg3 {[%clk 0:02:50.6]} 15. fxg3 {[%clk
0:02:43]} 15... g5 {[%clk 0:02:50.8]} 16. g4 {[%clk 0:02:40.7]} 16... Bg6 {[%clk
0:02:50.7]} 17. h4 {[%clk 0:02:41.3]} 17... gxh4 {[%clk 0:02:51.3]} 18. g5
{[%clk 0:02:36.6]} 18... Nh7 {[%clk 0:02:48.9]} 19. Rxh4 {[%clk 0:02:20.8]}
19... Qxg5 {[%clk 0:02:45.3]} 20. Rdh1 {[%clk 0:02:14.2]} 20... Qxe3 {[%clk
0:02:42.5]} 21. Ndxe4 {[%clk 0:02:06.7]} 21... Ng5 {[%clk 0:02:34.8]} 22. Bd3
{[%clk 0:01:00.2]} 22... Rae8 {[%clk 0:02:32.2]} 23. Bc1 {[%clk 0:00:52.3]}
23... Qxd4 {[%clk 0:02:23.5]} 24. Bxg5 {[%clk 0:00:50.8]} 24... Rxe4 {[%clk
0:02:21.1]} 25. Bxe4 {[%clk 0:00:49.1]} 25... Qxc3 {[%clk 0:02:17.3]} 26. Qxc3
{[%clk 0:00:46.1]} 26... Bxc3 {[%clk 0:02:18.2]} 27. Be7 {[%clk 0:00:36.9]}
27... Re8 {[%clk 0:02:09.8]} 28. Bxg6 {[%clk 0:00:37]} 28... Rxe7 {[%clk
0:02:07.4]} 29. Bf5 {[%clk 0:00:36.6]} 29... Nc5 {[%clk 0:01:56.6]} 30. Rg1+
{[%clk 0:00:36.1]} 30... Kf8 {[%clk 0:01:53.5]} 31. Kc2 {[%clk 0:00:34.8]} 31...
Bf6 {[%clk 0:01:45.7]} 32. Rh2 {[%clk 0:00:32.4]} 32... Re3 {[%clk 0:01:38.1]}
33. Rf1 {[%clk 0:00:25.9]} 33... Ke7 {[%clk 0:01:34]} 34. Bg4 {[%clk 0:00:25.5]}
34... Rc3+ {[%clk 0:01:31.1]} 35. Kd1 {[%clk 0:00:26]} 35... Rg3 {[%clk
0:01:31.8]} 36. Re2+ {[%clk 0:00:26]} 36... Ne6 {[%clk 0:01:29.1]} 37. Ref2
{[%clk 0:00:21.7]} 37... Rxg4 {[%clk 0:01:19.2]} 38. Rxf6 {[%clk 0:00:22]} 38...
Rg7 {[%clk 0:01:19.9]} 39. R6f2 {[%clk 0:00:19.8]} 39... Nd8 {[%clk 0:01:18.8]}
40. Re2+ {[%clk 0:00:19.6]} 40... Kd7 {[%clk 0:01:19.1]} 41. Ref2 {[%clk
0:00:20.5]} 41... Rg3 {[%clk 0:01:18.5]} 42. Rf3 {[%clk 0:00:20.4]} 42... Rg2
{[%clk 0:01:18.4]} 43. R1f2 {[%clk 0:00:20.9]} 43... Rg5 {[%clk 0:01:19.1]} 44.
Kd2 {[%clk 0:00:20.9]} 44... Ra5 {[%clk 0:01:18.9]} 45. Kc3 {[%clk 0:00:21.2]}
45... Rg5 {[%clk 0:01:19.6]} 46. Rf5 {[%clk 0:00:21.3]} 46... Rg6 {[%clk
0:01:19.3]} 47. R5f3 {[%clk 0:00:22.2]} 47... a5 {[%clk 0:01:18.9]} 48. Rf6
{[%clk 0:00:21.4]} 48... Rg3+ {[%clk 0:01:17]} 49. R6f3 {[%clk 0:00:21.8]} 49...
Rg8 {[%clk 0:01:17.7]} 50. Rf5 {[%clk 0:00:22.5]} 50... Re8 {[%clk 0:01:17.4]}
51. Rxa5 {[%clk 0:00:22.5]} 51... c5 {[%clk 0:01:12.5]} 52. Ra8 {[%clk
0:00:21.8]} 52... Re3+ {[%clk 0:01:11.1]} 53. Kd2 {[%clk 0:00:21.9]} 53... Rh3
{[%clk 0:01:10.8]} 54. Kc2 {[%clk 0:00:21.5]} 54... Kc7 {[%clk 0:01:08.6]} 55.
Kb2 {[%clk 0:00:20.8]} 55... Rh8 {[%clk 0:01:04.9]} 56. a4 {[%clk 0:00:20.7]}
56... Rf8 {[%clk 0:01:05]} 57. a5 {[%clk 0:00:19.9]} 57... f5 {[%clk 0:01:04.1]}
58. Kc3 {[%clk 0:00:18]} 58... f4 {[%clk 0:01:04]} 59. Kd3 {[%clk 0:00:18.4]}
59... Rf7 {[%clk 0:00:56.9]} 60. Rf3 {[%clk 0:00:16.8]} 60... Ne6 {[%clk
0:00:56.3]} 61. Rh8 {[%clk 0:00:15.8]} 61... Nd4 {[%clk 0:00:56.9]} 62. Rf2
{[%clk 0:00:15]} 62... Nxb3 {[%clk 0:00:54.8]} 63. a6 {[%clk 0:00:15]} 63...
bxa6 {[%clk 0:00:53.3]} 64. Ke4 {[%clk 0:00:14.9]} 64... Na5 {[%clk 0:00:40]}
65. Kd5 {[%clk 0:00:10.2]} 65... Rf5+ {[%clk 0:00:39.8]} 66. Ke4 {[%clk
0:00:09.2]} 66... Re5+ {[%clk 0:00:40.4]} 67. Kxf4 {[%clk 0:00:09.8]} 67... Nxc4
{[%clk 0:00:41]} 68. Ra8 {[%clk 0:00:09.9]} 68... Kb7 {[%clk 0:00:40.6]} 69. Rd8
{[%clk 0:00:10.6]} 69... a5 {[%clk 0:00:37.9]} 70. Rc2 {[%clk 0:00:10.7]} 70...
Ne3 {[%clk 0:00:33.6]} 71. Re2 {[%clk 0:00:08.6]} 71... Nd5+ {[%clk 0:00:33.2]}
72. Kf3 {[%clk 0:00:09.2]} 72... Rxe2 {[%clk 0:00:34.1]} 73. Kxe2 {[%clk
0:00:10.1]} 73... Kc7 {[%clk 0:00:29.9]} 74. Ra8 {[%clk 0:00:10]} 74... a4
{[%clk 0:00:30.6]} 75. Kd3 {[%clk 0:00:09.2]} 75... Nb6 {[%clk 0:00:31]} 76.
Ra7+ {[%clk 0:00:09.3]} 76... Kc6 {[%clk 0:00:31.4]} 77. Rh7 {[%clk 0:00:09.3]}
77... d5 {[%clk 0:00:31.8]} 78. Kc2 {[%clk 0:00:09.5]} 78... Kb5 {[%clk
0:00:32.3]} 79. Rh8 {[%clk 0:00:09.7]} 79... d4 {[%clk 0:00:33.2]} 80. Rb8
{[%clk 0:00:09.9]} 80... c4 {[%clk 0:00:32.4]} 81. Kb2 {[%clk 0:00:09.4]} 81...
Kc5 {[%clk 0:00:30.3]} 82. Ka3 {[%clk 0:00:09.4]} 82... d3 {[%clk 0:00:30.9]}
83. Rd8 {[%clk 0:00:09.5]} 83... Nd5 {[%clk 0:00:31]} 84. Kb2 {[%clk 0:00:09]}
84... Kd4 {[%clk 0:00:30.6]} 85. Kc1 {[%clk 0:00:08.7]} 85... c3 {[%clk
0:00:31.1]} 86. Kd1 {[%clk 0:00:08.3]} 86... Kc4 {[%clk 0:00:30.4]} 87. Rc8+
{[%clk 0:00:08.3]} 87... Kb3 {[%clk 0:00:30.3]} 88. Rd8 {[%clk 0:00:08.5]} 88...
Nb4 {[%clk 0:00:30.9]} 89. Kc1 {[%clk 0:00:07.1]} 89... a3 {[%clk 0:00:31.4]}
90. Kb1 {[%clk 0:00:06.1]} 90... a2+ {[%clk 0:00:31.6]} 91. Ka1 {[%clk
0:00:06.4]} 91... Nc2# {[%clk 0:00:32.3]} 0-1

[Event "Early-Titled-Tuesday-Blitz-May-28-2024"]
[Site "Chess.com"]
[Date "2024.05.28"]
[Round "7"]
[White "jbking07"]
[Black "abelmat"]
[Result "1-0"]
[WhiteElo "2380"]
[BlackElo "2067"]
[TimeControl "180+1"]
[EndTime "9:20:12 PDT"]
[Termination "jbking07 won by checkmate"]

1. e4 {[%clk 0:03:00.9]} 1... e6 {[%clk 0:02:59.8]} 2. d4 {[%clk 0:03:00.8]}
2... d5 {[%clk 0:03:00.7]} 3. Nc3 {[%clk 0:03:01]} 3... dxe4 {[%clk 0:03:00]} 4.
Nxe4 {[%clk 0:03:01.1]} 4... Nd7 {[%clk 0:03:00.9]} 5. Nf3 {[%clk 0:02:58.5]}
5... Ngf6 {[%clk 0:03:01.4]} 6. Bd3 {[%clk 0:02:58.7]} 6... Nxe4 {[%clk
0:02:59.4]} 7. Bxe4 {[%clk 0:02:58.7]} 7... Nf6 {[%clk 0:02:59.8]} 8. Bd3 {[%clk
0:02:54.6]} 8... Be7 {[%clk 0:02:59.8]} 9. c3 {[%clk 0:02:54.2]} 9... O-O {[%clk
0:03:00]} 10. O-O {[%clk 0:02:54.4]} 10... b6 {[%clk 0:03:00.2]} 11. Ne5 {[%clk
0:02:52]} 11... Bb7 {[%clk 0:03:00.2]} 12. Bc2 {[%clk 0:02:47.2]} 12... Rc8
{[%clk 0:02:55.6]} 13. Bg5 {[%clk 0:02:44.3]} 13... c5 {[%clk 0:02:54.8]} 14.
dxc5 {[%clk 0:02:32.8]} 14... Rxc5 {[%clk 0:02:52.2]} 15. Re1 {[%clk 0:02:06.6]}
15... Rd5 {[%clk 0:02:48.2]} 16. Qe2 {[%clk 0:01:59.2]} 16... h6 {[%clk
0:02:39.4]} 17. Bxf6 {[%clk 0:01:56.3]} 17... Bxf6 {[%clk 0:02:39.1]} 18. Nf3
{[%clk 0:01:46]} 18... Qc7 {[%clk 0:02:20.8]} 19. Qe4 {[%clk 0:01:44.6]} 19...
g6 {[%clk 0:02:16.2]} 20. Qe3 {[%clk 0:01:37.4]} 20... Kg7 {[%clk 0:02:13.7]}
21. Rad1 {[%clk 0:01:29.1]} 21... Rh5 {[%clk 0:02:06.5]} 22. h3 {[%clk
0:01:23.5]} 22... Rd8 {[%clk 0:01:52.7]} 23. Rxd8 {[%clk 0:01:19.5]} 23... Qxd8
{[%clk 0:01:52.4]} 24. Rd1 {[%clk 0:01:19.4]} 24... Rd5 {[%clk 0:01:51.1]} 25.
Rxd5 {[%clk 0:01:14.5]} 25... Qxd5 {[%clk 0:01:51]} 26. a3 {[%clk 0:01:10.4]}
26... Qa2 {[%clk 0:01:44]} 27. Qc1 {[%clk 0:01:03.7]} 27... Qd5 {[%clk
0:01:31.8]} 28. Bd1 {[%clk 0:01:00.4]} 28... Qe4 {[%clk 0:01:25.8]} 29. Bc2
{[%clk 0:00:53.7]} 29... Qe2 {[%clk 0:01:23.7]} 30. Bd1 {[%clk 0:00:51.6]} 30...
Qb5 {[%clk 0:01:17]} 31. Qd2 {[%clk 0:00:46.7]} 31... Bd5 {[%clk 0:01:13]} 32.
Be2 {[%clk 0:00:45.9]} 32... Qc6 {[%clk 0:01:07.9]} 33. Ne1 {[%clk 0:00:43]}
33... Bg5 {[%clk 0:01:04.1]} 34. f4 {[%clk 0:00:41.6]} 34... Bh4 {[%clk
0:01:00.3]} 35. Bf3 {[%clk 0:00:38.8]} 35... Qc5+ {[%clk 0:00:54.2]} 36. Kh2
{[%clk 0:00:30.1]} 36... Bb3 {[%clk 0:00:35.3]} 37. Nd3 {[%clk 0:00:26.2]} 37...
Qd6 {[%clk 0:00:31.9]} 38. Qe3 {[%clk 0:00:25.6]} 38... Bf6 {[%clk 0:00:30]} 39.
g3 {[%clk 0:00:21.3]} 39... Bc4 {[%clk 0:00:23.8]} 40. Nf2 {[%clk 0:00:19.9]}
40... Bb3 {[%clk 0:00:20.2]} 41. Ne4 {[%clk 0:00:19.6]} 41... Qe7 {[%clk
0:00:19.1]} 42. Nxf6 {[%clk 0:00:19.5]} 42... Qxf6 {[%clk 0:00:20]} 43. Kg2
{[%clk 0:00:19.4]} 43... h5 {[%clk 0:00:19]} 44. Qe5 {[%clk 0:00:19]} 44... Bc4
{[%clk 0:00:17.4]} 45. Bc6 {[%clk 0:00:17.3]} 45... Bb3 {[%clk 0:00:16.8]} 46.
Bb5 {[%clk 0:00:16.6]} 46... Bc2 {[%clk 0:00:16.5]} 47. Kf2 {[%clk 0:00:16.2]}
47... Bb1 {[%clk 0:00:16]} 48. h4 {[%clk 0:00:16.4]} 48... Bf5 {[%clk
0:00:15.9]} 49. Ke3 {[%clk 0:00:16.3]} 49... Bb1 {[%clk 0:00:15.8]} 50. Kd4
{[%clk 0:00:16.3]} 50... Bc2 {[%clk 0:00:14.5]} 51. c4 {[%clk 0:00:15.9]} 51...
Bb3 {[%clk 0:00:12.4]} 52. c5 {[%clk 0:00:15.1]} 52... bxc5+ {[%clk 0:00:11.8]}
53. Kxc5 {[%clk 0:00:15.1]} 53... Bd5 {[%clk 0:00:11.9]} 54. Bc6 {[%clk
0:00:14.1]} 54... Bb3 {[%clk 0:00:10.1]} 55. Kb5 {[%clk 0:00:13.1]} 55... Bc2
{[%clk 0:00:08.7]} 56. Ka6 {[%clk 0:00:12.8]} 56... Bd3+ {[%clk 0:00:06.4]} 57.
Kxa7 {[%clk 0:00:12.4]} 57... Be2 {[%clk 0:00:05.1]} 58. Kb6 {[%clk 0:00:12.1]}
58... Bd3 {[%clk 0:00:04.8]} 59. a4 {[%clk 0:00:12.4]} 59... Bc2 {[%clk
0:00:04.5]} 60. a5 {[%clk 0:00:12.5]} 60... g5 {[%clk 0:00:03.6]} 61. Qxf6+
{[%clk 0:00:10.1]} 61... Kxf6 {[%clk 0:00:03.5]} 62. hxg5+ {[%clk 0:00:11]}
62... Ke7 {[%clk 0:00:02.9]} 63. a6 {[%clk 0:00:11.2]} 63... Kd6 {[%clk
0:00:03.7]} 64. a7 {[%clk 0:00:10.9]} 64... Be4 {[%clk 0:00:03.1]} 65. Bxe4
{[%clk 0:00:10.8]} 65... f5 {[%clk 0:00:02.8]} 66. gxf6 {[%clk 0:00:10.4]} 66...
e5 {[%clk 0:00:01.8]} 67. fxe5+ {[%clk 0:00:11.3]} 67... Ke6 {[%clk 0:00:01.2]}
68. f7 {[%clk 0:00:12.2]} 68... h4 {[%clk 0:00:01.8]} 69. gxh4 {[%clk
0:00:12.2]} 69... Kxe5 {[%clk 0:00:01.3]} 70. f8=Q {[%clk 0:00:10.9]} 70... Kd4
{[%clk 0:00:02.2]} 71. Qf4 {[%clk 0:00:09.7]} 71... Kc4 {[%clk 0:00:01]} 72.
Bd3+ {[%clk 0:00:10]} 72... Kb3 {[%clk 0:00:01.9]} 73. Qc4+ {[%clk 0:00:09.5]}
73... Kxb2 {[%clk 0:00:01.5]} 74. Qc2+ {[%clk 0:00:08.6]} 74... Ka3 {[%clk
0:00:02.4]} 75. a8=Q+ {[%clk 0:00:07.4]} 75... Kb4 {[%clk 0:00:02.1]} 76. Qaa4#
{[%clk 0:00:07.2]} 1-0